[Event "Early-Titled-Tuesday-Blitz-February-27-2024"]
[Site "Chess.com"]
[Date "2024.02.27"]
[Round "7"]
[White "TitarovVasiliYouTube"]
[Black "NM_Antelacus"]
[Result "1-0"]
[WhiteElo "2518"]
[BlackElo "2252"]
[TimeControl "180+1"]
[EndTime "9:18:22 PST"]
[Termination "TitarovVasiliYouTube won on time"]

1. e4 {[%clk 0:03:00.9]} 1... c5 {[%clk 0:02:59.2]} 2. Nf3 {[%clk 0:03:00.7]}
2... Nc6 {[%clk 0:02:59.3]} 3. Be2 {[%clk 0:03:00.6]} 3... g6 {[%clk 0:02:58]}
4. O-O {[%clk 0:03:00]} 4... Bg7 {[%clk 0:02:58.1]} 5. c3 {[%clk 0:03:00.5]}
5... d5 {[%clk 0:02:55.6]} 6. exd5 {[%clk 0:02:58.8]} 6... Qxd5 {[%clk
0:02:55.3]} 7. d3 {[%clk 0:02:58.1]} 7... Nf6 {[%clk 0:02:54.2]} 8. a4 {[%clk
0:02:56.4]} 8... O-O {[%clk 0:02:53.3]} 9. Na3 {[%clk 0:02:56.3]} 9... b6 {[%clk
0:02:49.8]} 10. Nc4 {[%clk 0:02:54.7]} 10... Bb7 {[%clk 0:02:47.6]} 11. Be3
{[%clk 0:02:41]} 11... Rfd8 {[%clk 0:02:43.8]} 12. Qb3 {[%clk 0:02:40.5]} 12...
Rac8 {[%clk 0:02:31.7]} 13. a5 {[%clk 0:02:36]} 13... Nxa5 {[%clk 0:02:17.1]}
14. Nxa5 {[%clk 0:02:36]} 14... bxa5 {[%clk 0:02:16.2]} 15. Qxd5 {[%clk
0:02:35.7]} 15... Nxd5 {[%clk 0:02:12.3]} 16. Rxa5 {[%clk 0:02:36.6]} 16... Nxe3
{[%clk 0:02:07.1]} 17. fxe3 {[%clk 0:02:37]} 17... a6 {[%clk 0:02:05.2]} 18. d4
{[%clk 0:02:37.1]} 18... cxd4 {[%clk 0:02:04.6]} 19. exd4 {[%clk 0:02:36.4]}
19... Rd6 {[%clk 0:02:00.5]} 20. Rfa1 {[%clk 0:02:35]} 20... Rb6 {[%clk
0:01:56.5]} 21. R1a2 {[%clk 0:02:26]} 21... e6 {[%clk 0:01:44.7]} 22. Ne1 {[%clk
0:02:23.5]} 22... Bf8 {[%clk 0:01:30]} 23. Bf3 {[%clk 0:01:58.4]} 23... Bxf3
{[%clk 0:01:28.7]} 24. gxf3 {[%clk 0:01:58.6]} 24... Rcc6 {[%clk 0:01:26]} 25.
Nd3 {[%clk 0:01:58.3]} 25... Bd6 {[%clk 0:01:24.7]} 26. Kg2 {[%clk 0:01:51.9]}
26... Kg7 {[%clk 0:01:23]} 27. f4 {[%clk 0:01:49.4]} 27... f6 {[%clk 0:01:22.6]}
28. Kf3 {[%clk 0:01:49.3]} 28... Kf7 {[%clk 0:01:21.4]} 29. Ra1 {[%clk
0:01:37.5]} 29... Ke7 {[%clk 0:01:15.4]} 30. Re1 {[%clk 0:01:35.4]} 30... Kd7
{[%clk 0:01:15.3]} 31. h4 {[%clk 0:01:26.8]} 31... Rb5 {[%clk 0:01:13.2]} 32.
Rea1 {[%clk 0:01:07.6]} 32... Rxa5 {[%clk 0:01:12.6]} 33. Rxa5 {[%clk
0:01:08.5]} 33... Rb6 {[%clk 0:01:05.2]} 34. h5 {[%clk 0:00:59]} 34... Kc6
{[%clk 0:01:04.3]} 35. hxg6 {[%clk 0:00:57.2]} 35... hxg6 {[%clk 0:01:04.5]} 36.
Ke2 {[%clk 0:00:39.8]} 36... Kb7 {[%clk 0:01:02.7]} 37. Ra1 {[%clk 0:00:36.4]}
37... Rb5 {[%clk 0:00:59.3]} 38. Rh1 {[%clk 0:00:33.1]} 38... Rf5 {[%clk
0:00:58.6]} 39. Ke3 {[%clk 0:00:31.1]} 39... e5 {[%clk 0:00:53.7]} 40. fxe5
{[%clk 0:00:28.8]} 40... fxe5 {[%clk 0:00:53.7]} 41. Rh6 {[%clk 0:00:23.4]}
41... exd4+ {[%clk 0:00:51]} 42. Kxd4 {[%clk 0:00:24.3]} 42... Rg5 {[%clk
0:00:41.6]} 43. Rh7+ {[%clk 0:00:10.7]} 43... Kc6 {[%clk 0:00:40]} 44. Rg7
{[%clk 0:00:09.1]} 44... Rg4+ {[%clk 0:00:39.6]} 45. Ke3 {[%clk 0:00:08.3]}
45... Kb5 {[%clk 0:00:34.1]} 46. Rd7 {[%clk 0:00:06.9]} 46... Bc5+ {[%clk
0:00:29.8]} 47. Kf3 {[%clk 0:00:06]} 47... Rg5 {[%clk 0:00:27]} 48. b3 {[%clk
0:00:05.4]} 48... Kc6 {[%clk 0:00:24.3]} 49. Rg7 {[%clk 0:00:04.9]} 49... Bd6
{[%clk 0:00:23.6]} 50. Ra7 {[%clk 0:00:04.4]} 50... Kb6 {[%clk 0:00:23.2]} 51.
Rg7 {[%clk 0:00:04.7]} 51... Kc6 {[%clk 0:00:22.2]} 52. Ke4 {[%clk 0:00:05.2]}
52... Rg4+ {[%clk 0:00:20.6]} 53. Kf3 {[%clk 0:00:05.7]} 53... Rg3+ {[%clk
0:00:20.8]} 54. Ke2 {[%clk 0:00:05]} 54... Rg2+ {[%clk 0:00:20.9]} 55. Ke3
{[%clk 0:00:03.8]} 55... Rg3+ {[%clk 0:00:20.3]} 56. Kd2 {[%clk 0:00:02.5]}
56... a5 {[%clk 0:00:18.7]} 57. c4 {[%clk 0:00:02.5]} 57... Bb4+ {[%clk
0:00:14.5]} 58. Ke2 {[%clk 0:00:02.6]} 58... Bc3 {[%clk 0:00:13.1]} 59. Rf7
{[%clk 0:00:02.5]} 59... Kd6 {[%clk 0:00:12.1]} 60. Ra7 {[%clk 0:00:02.6]} 60...
Ke6 {[%clk 0:00:12]} 61. Ra6+ {[%clk 0:00:03.5]} 61... Kf5 {[%clk 0:00:11.9]}
62. c5 {[%clk 0:00:04.4]} 62... Ke4 {[%clk 0:00:09.8]} 63. Re6+ {[%clk 0:00:04]}
63... Kd5 {[%clk 0:00:09.3]} 64. Rd6+ {[%clk 0:00:04.6]} 64... Ke4 {[%clk
0:00:09.3]} 65. c6 {[%clk 0:00:04.3]} 65... Rg2+ {[%clk 0:00:08.8]} 66. Kf1
{[%clk 0:00:04.3]} 66... Rc2 {[%clk 0:00:07.1]} 67. c7 {[%clk 0:00:03.5]} 67...
Bd4 {[%clk 0:00:06.5]} 68. Re6+ {[%clk 0:00:02.2]} 68... Kxd3 {[%clk 0:00:06.3]}
69. Re7 {[%clk 0:00:01.5]} 69... Be3 {[%clk 0:00:05.1]} 70. Rd7+ {[%clk
0:00:01]} 70... Bd4 {[%clk 0:00:05.4]} 71. Ke1 {[%clk 0:00:01.8]} 71... g5
{[%clk 0:00:05.6]} 72. Kd1 {[%clk 0:00:01.7]} 72... g4 {[%clk 0:00:04.1]} 73.
Rxd4+ {[%clk 0:00:02]} 73... Kxd4 {[%clk 0:00:03.4]} 74. Kxc2 {[%clk 0:00:02.3]}
74... g3 {[%clk 0:00:03.5]} 75. c8=Q {[%clk 0:00:03.1]} 75... g2 {[%clk
0:00:03.8]} 76. Qg4+ {[%clk 0:00:04]} 1-0

[Event "Early-Titled-Tuesday-Blitz-February-27-2024"]
[Site "Chess.com"]
[Date "2024.02.27"]
[Round "7"]
[White "Nouali_Mohamed"]
[Black "Witik"]
[Result "0-1"]
[WhiteElo "2540"]
[BlackElo "2712"]
[TimeControl "180+1"]
[EndTime "9:18:23 PST"]
[Termination "Witik won on time"]

1. e4 {[%clk 0:03:00.3]} 1... c6 {[%clk 0:03:00]} 2. d4 {[%clk 0:03:00.4]} 2...
d5 {[%clk 0:03:00.7]} 3. e5 {[%clk 0:03:00.9]} 3... Bf5 {[%clk 0:03:00.6]} 4.
Nc3 {[%clk 0:03:01.2]} 4... e6 {[%clk 0:02:59.3]} 5. g4 {[%clk 0:03:01.5]} 5...
Bg6 {[%clk 0:02:59.6]} 6. Nge2 {[%clk 0:03:02.1]} 6... c5 {[%clk 0:02:59.8]} 7.
h4 {[%clk 0:03:02.1]} 7... h5 {[%clk 0:03:00.4]} 8. Nf4 {[%clk 0:03:02.2]} 8...
Bh7 {[%clk 0:03:00.9]} 9. g5 {[%clk 0:03:02.7]} 9... cxd4 {[%clk 0:03:00.8]} 10.
Nb5 {[%clk 0:03:02.9]} 10... Be4 {[%clk 0:02:59.5]} 11. f3 {[%clk 0:02:58.8]}
11... Bf5 {[%clk 0:02:59.8]} 12. Nxd4 {[%clk 0:02:56.4]} 12... Ne7 {[%clk
0:02:59.9]} 13. Bb5+ {[%clk 0:02:41.5]} 13... Nbc6 {[%clk 0:02:56.7]} 14. g6
{[%clk 0:02:41.8]} 14... Bxg6 {[%clk 0:02:14.1]} 15. Nxg6 {[%clk 0:02:36.9]}
15... fxg6 {[%clk 0:01:53.9]} 16. Nxe6 {[%clk 0:02:35]} 16... Qd7 {[%clk
0:01:46.5]} 17. Ng5 {[%clk 0:02:02]} 17... Nf5 {[%clk 0:01:40.1]} 18. Bf4 {[%clk
0:01:13.5]} 18... O-O-O {[%clk 0:00:58.4]} 19. c3 {[%clk 0:00:59.2]} 19... Bc5
{[%clk 0:00:33.8]} 20. Qe2 {[%clk 0:00:48]} 20... Rhe8 {[%clk 0:00:18.5]} 21.
O-O-O {[%clk 0:00:46.7]} 21... Qc7 {[%clk 0:00:18.9]} 22. Kb1 {[%clk 0:00:37.6]}
22... a6 {[%clk 0:00:14.8]} 23. Bxc6 {[%clk 0:00:29.2]} 23... Qxc6 {[%clk
0:00:15.1]} 24. e6 {[%clk 0:00:27.5]} 24... d4 {[%clk 0:00:13.4]} 25. cxd4
{[%clk 0:00:20.5]} 25... Nxd4 {[%clk 0:00:13]} 26. Qc4 {[%clk 0:00:20.6]} 26...
Bb6 {[%clk 0:00:05.2]} 27. Qxc6+ {[%clk 0:00:14.5]} 27... bxc6 {[%clk
0:00:05.1]} 28. Rhe1 {[%clk 0:00:11.6]} 28... Nf5 {[%clk 0:00:02.5]} 29. Rc1
{[%clk 0:00:09.1]} 29... Kb7 {[%clk 0:00:02.7]} 30. Nf7 {[%clk 0:00:09]} 30...
Rd5 {[%clk 0:00:02.9]} 31. Bg5 {[%clk 0:00:03.5]} 31... Bf2 {[%clk 0:00:02.4]}
32. Rf1 {[%clk 0:00:03.5]} 32... Bb6 {[%clk 0:00:03]} 33. f4 {[%clk 0:00:03.8]}
33... Rxe6 {[%clk 0:00:03]} 34. Ne5 {[%clk 0:00:04.5]} 34... Bc7 {[%clk
0:00:03.2]} 35. Rfe1 {[%clk 0:00:04.2]} 35... Bxe5 {[%clk 0:00:03.3]} 36. fxe5
{[%clk 0:00:05.1]} 36... Rdxe5 {[%clk 0:00:04]} 37. Rg1 {[%clk 0:00:06]} 37...
Re2 {[%clk 0:00:03.9]} 38. a3 {[%clk 0:00:06.4]} 38... a5 {[%clk 0:00:04.3]} 39.
Rg3 {[%clk 0:00:06.8]} 39... a4 {[%clk 0:00:04.6]} 40. Rgc3 {[%clk 0:00:06.8]}
40... R2e4 {[%clk 0:00:04.6]} 41. Rc5 {[%clk 0:00:06.6]} 41... Nd4 {[%clk
0:00:04.9]} 42. R5c4 {[%clk 0:00:06.1]} 42... Nb3 {[%clk 0:00:05.2]} 43. Rxe4
{[%clk 0:00:04.9]} 43... Rxe4 {[%clk 0:00:06.1]} 44. Rd1 {[%clk 0:00:05.1]}
44... c5 {[%clk 0:00:06]} 45. Rd7+ {[%clk 0:00:05]} 45... Kc6 {[%clk 0:00:06.5]}
46. Rxg7 {[%clk 0:00:05.7]} 46... Rg4 {[%clk 0:00:02.8]} 47. Rxg6+ {[%clk
0:00:05.7]} 47... Kd5 {[%clk 0:00:03.5]} 48. Rg8 {[%clk 0:00:05.3]} 48... Kc4
{[%clk 0:00:03.7]} 49. Rf8 {[%clk 0:00:04.1]} 49... Rg1+ {[%clk 0:00:03.7]} 50.
Kc2 {[%clk 0:00:04.3]} 50... Rg2+ {[%clk 0:00:04.3]} 51. Kb1 {[%clk 0:00:03.6]}
51... Kd3 {[%clk 0:00:04.9]} 52. Rf3+ {[%clk 0:00:03.2]} 52... Ke4 {[%clk
0:00:04.7]} 53. Rf1 {[%clk 0:00:03.4]} 53... c4 {[%clk 0:00:04.7]} 54. Re1+
{[%clk 0:00:03.5]} 54... Kd3 {[%clk 0:00:04.7]} 55. Rd1+ {[%clk 0:00:04.2]}
55... Nd2+ {[%clk 0:00:04]} 56. Bxd2 {[%clk 0:00:04]} 56... Rxd2 {[%clk
0:00:04.1]} 57. Rc1 {[%clk 0:00:04.6]} 57... Rh2 {[%clk 0:00:03.9]} 58. Rc3+
{[%clk 0:00:04.5]} 58... Kd4 {[%clk 0:00:04.3]} 59. Ka2 {[%clk 0:00:04.4]} 59...
Rxh4 {[%clk 0:00:04.6]} 60. Rg3 {[%clk 0:00:05]} 60... Rh2 {[%clk 0:00:04.5]}
61. Rg5 {[%clk 0:00:04.8]} 61... c3 {[%clk 0:00:03.5]} 62. Rg8 {[%clk 0:00:03]}
62... Rxb2+ {[%clk 0:00:03.4]} 63. Ka1 {[%clk 0:00:03.6]} 63... Rh2 {[%clk
0:00:04.2]} 64. Rd8+ {[%clk 0:00:03.7]} 64... Kc4 {[%clk 0:00:04.7]} 65. Rc8+
{[%clk 0:00:03.7]} 65... Kb3 {[%clk 0:00:05]} 66. Rb8+ {[%clk 0:00:03.7]} 66...
Kxa3 {[%clk 0:00:05.5]} 67. Kb1 {[%clk 0:00:03.7]} 67... Rb2+ {[%clk 0:00:05.1]}
68. Ka1 {[%clk 0:00:04.2]} 68... Rb3 {[%clk 0:00:04.2]} 69. Rg8 {[%clk
0:00:02.1]} 69... c2 {[%clk 0:00:03.6]} 70. Rg1 {[%clk 0:00:02.3]} 70... Rb1+
{[%clk 0:00:03.8]} 71. Rxb1 {[%clk 0:00:01.6]} 71... cxb1=Q+ {[%clk 0:00:04.7]}
72. Kxb1 {[%clk 0:00:02.5]} 72... h4 {[%clk 0:00:04.7]} 73. Kc2 {[%clk
0:00:02.7]} 73... h3 {[%clk 0:00:05.3]} 74. Kd2 {[%clk 0:00:02.3]} 74... h2
{[%clk 0:00:05.9]} 75. Kc2 {[%clk 0:00:02]} 75... h1=Q {[%clk 0:00:06.3]} 0-1

[Event "Early-Titled-Tuesday-Blitz-February-27-2024"]
[Site "Chess.com"]
[Date "2024.02.27"]
[Round "7"]
[White "ActorXu"]
[Black "Firouzja2003"]
[Result "0-1"]
[WhiteElo "2834"]
[BlackElo "3074"]
[TimeControl "180+1"]
[EndTime "9:18:26 PST"]
[Termination "Firouzja2003 won by resignation"]

1. e4 {[%clk 0:03:00.9]} 1... c5 {[%clk 0:02:55.3]} 2. Nf3 {[%clk 0:03:00.7]}
2... d6 {[%clk 0:02:55.6]} 3. d4 {[%clk 0:03:00.6]} 3... cxd4 {[%clk 0:02:56.5]}
4. Nxd4 {[%clk 0:03:01.2]} 4... Nf6 {[%clk 0:02:57.2]} 5. Nc3 {[%clk 0:03:01.8]}
5... a6 {[%clk 0:02:58]} 6. Be3 {[%clk 0:03:01.6]} 6... e5 {[%clk 0:02:58]} 7.
Nb3 {[%clk 0:03:02.1]} 7... Be7 {[%clk 0:02:58.4]} 8. h3 {[%clk 0:03:02.1]} 8...
Be6 {[%clk 0:02:58.1]} 9. Qd2 {[%clk 0:03:01.2]} 9... Nbd7 {[%clk 0:02:58]} 10.
O-O-O {[%clk 0:03:01.6]} 10... b5 {[%clk 0:02:57.9]} 11. g4 {[%clk 0:02:55.9]}
11... h6 {[%clk 0:02:58.1]} 12. Kb1 {[%clk 0:02:54.8]} 12... Nb6 {[%clk
0:02:57.4]} 13. f4 {[%clk 0:02:34.6]} 13... b4 {[%clk 0:02:50.7]} 14. Bxb6
{[%clk 0:01:51.9]} 14... Qxb6 {[%clk 0:02:49.5]} 15. Nd5 {[%clk 0:01:52.4]}
15... Bxd5 {[%clk 0:02:47.4]} 16. exd5 {[%clk 0:01:52]} 16... Ne4 {[%clk
0:02:48]} 17. Qe1 {[%clk 0:01:43.7]} 17... Nf2 {[%clk 0:02:45.5]} 18. fxe5
{[%clk 0:01:40.5]} 18... Nxd1 {[%clk 0:02:36]} 19. exd6 {[%clk 0:01:38.3]} 19...
Qxd6 {[%clk 0:02:34.4]} 20. Qxd1 {[%clk 0:01:38.9]} 20... O-O {[%clk 0:02:35.2]}
21. Bd3 {[%clk 0:01:38.5]} 21... Bf6 {[%clk 0:02:35.1]} 22. Na5 {[%clk
0:01:22.9]} 22... Rad8 {[%clk 0:02:30.3]} 23. Nc6 {[%clk 0:01:20]} 23... Rde8
{[%clk 0:02:26.2]} 24. Qf3 {[%clk 0:01:17.4]} 24... a5 {[%clk 0:02:21.4]} 25. h4
{[%clk 0:01:14.8]} 25... Bxh4 {[%clk 0:02:20.5]} 26. a4 {[%clk 0:01:02.8]} 26...
bxa3 {[%clk 0:02:12.5]} 27. Rxh4 {[%clk 0:01:02.4]} 27... Re1+ {[%clk
0:02:12.3]} 28. Ka2 {[%clk 0:01:03]} 28... axb2 {[%clk 0:02:12.5]} 29. Kxb2
{[%clk 0:01:03.6]} 29... Rb8+ {[%clk 0:02:10.7]} 30. Kc3 {[%clk 0:00:56.7]}
30... Qa3+ {[%clk 0:02:10.9]} 31. Kd2 {[%clk 0:00:52.7]} 31... Qc1+ {[%clk
0:02:11.1]} 32. Kc3 {[%clk 0:00:53.1]} 32... Qa1+ {[%clk 0:02:07.9]} 33. Kd2
{[%clk 0:00:44]} 33... Rbb1 {[%clk 0:02:06]} 34. Be2 {[%clk 0:00:38.3]} 34...
Qb2 {[%clk 0:01:47.4]} 35. Qf5 {[%clk 0:00:33.4]} 35... g6 {[%clk 0:01:23.6]}
36. Qf2 {[%clk 0:00:30.8]} 36... Qc1+ {[%clk 0:01:10.8]} 37. Kd3 {[%clk
0:00:28.7]} 37... Qa3+ {[%clk 0:01:11.4]} 38. c3 {[%clk 0:00:26.8]} 38... Qd6
{[%clk 0:00:55.4]} 39. Nd4 {[%clk 0:00:23.6]} 39... Qxd5 {[%clk 0:00:23.3]} 40.
Rxh6 {[%clk 0:00:23.4]} 40... Qe5 {[%clk 0:00:20.9]} 41. Qh2 {[%clk 0:00:16]}
41... Qxh2 {[%clk 0:00:06.1]} 42. Rxh2 {[%clk 0:00:15.7]} 42... a4 {[%clk
0:00:06.1]} 43. Nc2 {[%clk 0:00:14.7]} 43... Rec1 {[%clk 0:00:04.7]} 44. Bf3
{[%clk 0:00:11]} 44... Rb2 {[%clk 0:00:05.1]} 45. Re2 {[%clk 0:00:08.1]} 45...
Kg7 {[%clk 0:00:04.9]} 46. g5 {[%clk 0:00:08]} 46... Rb5 {[%clk 0:00:04.2]} 47.
Nd4 {[%clk 0:00:06.8]} 47... Rxg5 {[%clk 0:00:02.7]} 48. Ra2 {[%clk 0:00:07.4]}
48... Rc5 {[%clk 0:00:02.2]} 49. Ne2 {[%clk 0:00:06.5]} 49... Rf1 {[%clk
0:00:02.2]} 50. Bg2 {[%clk 0:00:04.6]} 50... Rf2 {[%clk 0:00:02.7]} 51. Be4
{[%clk 0:00:04.9]} 51... f5 {[%clk 0:00:02.7]} 52. Bb7 {[%clk 0:00:04.6]} 52...
Re5 {[%clk 0:00:02.9]} 53. Ba6 {[%clk 0:00:03.4]} 53... f4 {[%clk 0:00:02.3]}
54. Kd4 {[%clk 0:00:03.9]} 54... Re7 {[%clk 0:00:01.5]} 55. Rxa4 {[%clk
0:00:03.1]} 55... f3 {[%clk 0:00:02.2]} 56. Ng3 {[%clk 0:00:02.9]} 56... Rg2
{[%clk 0:00:02.9]} 57. Ne4 {[%clk 0:00:03.3]} 57... Rg4 {[%clk 0:00:02.1]} 58.
Ke3 {[%clk 0:00:03.1]} 58... f2 {[%clk 0:00:02.8]} 59. Bf1 {[%clk 0:00:02.4]}
59... g5 {[%clk 0:00:02.8]} 60. Kf3 {[%clk 0:00:02.8]} 60... Rf4+ {[%clk
0:00:03.1]} 61. Ke3 {[%clk 0:00:03.3]} 61... Kg6 {[%clk 0:00:03.1]} 62. Rd4
{[%clk 0:00:03.8]} 62... Kf5 {[%clk 0:00:03.4]} 63. Bd3 {[%clk 0:00:02.7]} 63...
f1=Q {[%clk 0:00:03.2]} 64. Bxf1 {[%clk 0:00:02.5]} 64... Rexe4+ {[%clk
0:00:03.8]} 65. Rxe4 {[%clk 0:00:02.7]} 65... Rxe4+ {[%clk 0:00:04.7]} 66. Kf2
{[%clk 0:00:02.7]} 66... Rf4+ {[%clk 0:00:05.2]} 67. Kg2 {[%clk 0:00:02.9]}
67... Kg4 {[%clk 0:00:04.9]} 68. Be2+ {[%clk 0:00:03.2]} 68... Kh4 {[%clk
0:00:05.5]} 69. c4 {[%clk 0:00:03.2]} 69... Re4 {[%clk 0:00:06]} 70. Bf1 {[%clk
0:00:02.6]} 70... g4 {[%clk 0:00:05.4]} 71. c5 {[%clk 0:00:03]} 71... Re5 {[%clk
0:00:06.1]} 72. c6 {[%clk 0:00:02.9]} 72... Rc5 {[%clk 0:00:07]} 73. Be2 {[%clk
0:00:02.7]} 73... Rxc6 {[%clk 0:00:07.2]} 74. Bd3 {[%clk 0:00:03.1]} 74... Rc3
{[%clk 0:00:07.4]} 75. Be4 {[%clk 0:00:03.2]} 75... Re3 {[%clk 0:00:07.7]} 76.
Bd5 {[%clk 0:00:03.6]} 76... Re2+ {[%clk 0:00:08.4]} 77. Kf1 {[%clk 0:00:04.1]}
77... Rd2 {[%clk 0:00:09.3]} 78. Be4 {[%clk 0:00:04.4]} 78... Kg3 {[%clk
0:00:09.7]} 79. Bb7 {[%clk 0:00:04.6]} 79... Rb2 {[%clk 0:00:10.2]} 80. Bc6
{[%clk 0:00:04.6]} 80... Rf2+ {[%clk 0:00:10.1]} 81. Ke1 {[%clk 0:00:02.7]}
81... Rf6 {[%clk 0:00:10.7]} 82. Bd5 {[%clk 0:00:02.8]} 82... Kh2 {[%clk
0:00:11.1]} 0-1

[Event "Early-Titled-Tuesday-Blitz-February-27-2024"]
[Site "Chess.com"]
[Date "2024.02.27"]
[Round "8"]
[White "Casper"]
[Black "francyIM"]
[Result "0-1"]
[WhiteElo "2561"]
[BlackElo "2791"]
[TimeControl "180+1"]
[EndTime "9:22:15 PST"]
[Termination "francyIM won by resignation"]

1. e4 {[%clk 0:03:00.9]} 1... e5 {[%clk 0:02:58.1]} 2. d4 {[%clk 0:03:01]} 2...
exd4 {[%clk 0:02:56.3]} 3. Qxd4 {[%clk 0:03:01.9]} 3... Nc6 {[%clk 0:02:55.9]}
4. Qc4 {[%clk 0:03:02.5]} 4... Nf6 {[%clk 0:02:54.6]} 5. Nc3 {[%clk 0:03:03.2]}
5... Bb4 {[%clk 0:02:54.4]} 6. Bd2 {[%clk 0:03:03.8]} 6... O-O {[%clk
0:02:53.4]} 7. O-O-O {[%clk 0:03:04.5]} 7... d6 {[%clk 0:02:53.4]} 8. Nd5 {[%clk
0:02:59.8]} 8... Bxd2+ {[%clk 0:02:53]} 9. Rxd2 {[%clk 0:03:00.7]} 9... Be6
{[%clk 0:02:53.4]} 10. f3 {[%clk 0:02:56.9]} 10... Re8 {[%clk 0:02:53]} 11. Ne2
{[%clk 0:02:53.5]} 11... Bxd5 {[%clk 0:02:52.5]} 12. exd5 {[%clk 0:02:53.2]}
12... Ne5 {[%clk 0:02:52.7]} 13. Qc3 {[%clk 0:02:52.5]} 13... a5 {[%clk
0:02:51.8]} 14. Nd4 {[%clk 0:02:48.7]} 14... Nxd5 {[%clk 0:02:48.1]} 15. Qb3
{[%clk 0:02:49]} 15... Nb6 {[%clk 0:02:48.1]} 16. Nf5 {[%clk 0:02:42.5]} 16...
Qg5 {[%clk 0:02:44.3]} 17. Ng3 {[%clk 0:02:27.4]} 17... Nxf3 {[%clk 0:02:39.8]}
18. Qxf3 {[%clk 0:02:22.5]} 18... Re1+ {[%clk 0:02:39.6]} 0-1

[Event "Early-Titled-Tuesday-Blitz-February-27-2024"]
[Site "Chess.com"]
[Date "2024.02.27"]
[Round "8"]
[White "eightbyeightchess"]
[Black "Natalya_Buksa"]
[Result "0-1"]
[WhiteElo "2421"]
[BlackElo "2612"]
[TimeControl "180+1"]
[EndTime "9:22:53 PST"]
[Termination "Natalya_Buksa won by resignation"]

1. e4 {[%clk 0:02:59.1]} 1... c5 {[%clk 0:03:00]} 2. c3 {[%clk 0:02:58.5]} 2...
d5 {[%clk 0:02:59.6]} 3. exd5 {[%clk 0:02:54.6]} 3... Nf6 {[%clk 0:02:59.5]} 4.
c4 {[%clk 0:02:53.5]} 4... e6 {[%clk 0:02:59.2]} 5. dxe6 {[%clk 0:02:54.3]} 5...
Bxe6 {[%clk 0:02:58.9]} 6. Nc3 {[%clk 0:02:54.5]} 6... Nc6 {[%clk 0:02:59.4]} 7.
Nf3 {[%clk 0:02:55.1]} 7... Bd6 {[%clk 0:03:00]} 8. Be2 {[%clk 0:02:55]} 8...
Qc7 {[%clk 0:02:59.7]} 9. h3 {[%clk 0:02:55.6]} 9... a6 {[%clk 0:03:00.3]} 10.
d3 {[%clk 0:02:55.8]} 10... O-O-O {[%clk 0:03:00.6]} 11. Bg5 {[%clk 0:02:56.5]}
11... h6 {[%clk 0:02:59.2]} 12. Bxf6 {[%clk 0:02:55.9]} 12... gxf6 {[%clk
0:03:00.1]} 13. Nd5 {[%clk 0:02:39.2]} 13... Bxd5 {[%clk 0:02:57.7]} 14. cxd5
{[%clk 0:02:40.1]} 14... Nb4 {[%clk 0:02:58.3]} 15. Qb3 {[%clk 0:02:36.2]} 15...
Rde8 {[%clk 0:02:51.7]} 16. a3 {[%clk 0:02:33.3]} 16... Qe7 {[%clk 0:02:51]} 17.
O-O {[%clk 0:02:15.7]} 17... Qxe2 {[%clk 0:02:48.6]} 18. axb4 {[%clk 0:02:15.6]}
18... Rhg8 {[%clk 0:02:47.8]} 19. Rae1 {[%clk 0:02:08.4]} 19... Rxg2+ {[%clk
0:02:47]} 20. Kh1 {[%clk 0:01:58.5]} 20... Qxf3 {[%clk 0:02:46.3]} 21. Rxe8+
{[%clk 0:01:59.2]} 21... Kc7 {[%clk 0:02:46.9]} 22. Qd1 {[%clk 0:01:54.5]} 22...
Rh2+ {[%clk 0:02:46.1]} 0-1

[Event "Early-Titled-Tuesday-Blitz-February-27-2024"]
[Site "Chess.com"]
[Date "2024.02.27"]
[Round "8"]
[White "Chesstiger64"]
[Black "Juicy_Fork"]
[Result "0-1"]
[WhiteElo "2359"]
[BlackElo "2532"]
[TimeControl "180+1"]
[EndTime "9:23:40 PST"]
[Termination "Juicy_Fork won by resignation"]

1. d4 {[%clk 0:03:00.9]} 1... Nf6 {[%clk 0:02:56.6]} 2. Nf3 {[%clk 0:03:01.1]}
2... g6 {[%clk 0:02:55.2]} 3. e3 {[%clk 0:03:01.3]} 3... Bg7 {[%clk 0:02:53.1]}
4. Be2 {[%clk 0:03:01.1]} 4... O-O {[%clk 0:02:51.8]} 5. c4 {[%clk 0:03:01.2]}
5... d6 {[%clk 0:02:48.9]} 6. O-O {[%clk 0:03:00.9]} 6... Nbd7 {[%clk
0:02:48.4]} 7. Nc3 {[%clk 0:03:01.5]} 7... e5 {[%clk 0:02:45.9]} 8. b4 {[%clk
0:03:00.8]} 8... Re8 {[%clk 0:02:37.4]} 9. a4 {[%clk 0:02:59.9]} 9... c6 {[%clk
0:02:25.3]} 10. b5 {[%clk 0:02:56.6]} 10... e4 {[%clk 0:02:17.3]} 11. Nd2 {[%clk
0:02:54.6]} 11... cxb5 {[%clk 0:02:11.8]} 12. axb5 {[%clk 0:02:53.9]} 12... Nf8
{[%clk 0:02:10.9]} 13. Nb3 {[%clk 0:02:43.4]} 13... Bf5 {[%clk 0:02:07.8]} 14.
c5 {[%clk 0:02:43.4]} 14... dxc5 {[%clk 0:01:47.7]} 15. Nxc5 {[%clk 0:02:42.4]}
15... Qc7 {[%clk 0:01:45.5]} 16. Qb3 {[%clk 0:02:36.6]} 16... Ne6 {[%clk
0:01:35.3]} 17. Nxe6 {[%clk 0:02:28.3]} 17... Bxe6 {[%clk 0:01:32.2]} 18. Bc4
{[%clk 0:02:23]} 18... Bxc4 {[%clk 0:01:24.7]} 19. Qxc4 {[%clk 0:02:22]} 19...
Qxc4 {[%clk 0:01:23.9]} 0-1

[Event "Early-Titled-Tuesday-Blitz-February-27-2024"]
[Site "Chess.com"]
[Date "2024.02.27"]
[Round "8"]
[White "NewYearGirl"]
[Black "MaxLeto"]
[Result "0-1"]
[WhiteElo "2378"]
[BlackElo "2523"]
[TimeControl "180+1"]
[EndTime "9:23:56 PST"]
[Termination "MaxLeto won by resignation"]

1. e4 {[%clk 0:03:00.9]} 1... c5 {[%clk 0:02:58.9]} 2. Nf3 {[%clk 0:03:01]} 2...
d6 {[%clk 0:02:59.5]} 3. d4 {[%clk 0:03:01.3]} 3... cxd4 {[%clk 0:02:59.9]} 4.
Nxd4 {[%clk 0:03:02.2]} 4... Nf6 {[%clk 0:03:00.5]} 5. Nc3 {[%clk 0:03:02.7]}
5... a6 {[%clk 0:03:01.2]} 6. Bg5 {[%clk 0:03:03.4]} 6... Nbd7 {[%clk
0:03:01.1]} 7. f4 {[%clk 0:03:03.9]} 7... Qc7 {[%clk 0:03:01.1]} 8. Qf3 {[%clk
0:03:04.3]} 8... h6 {[%clk 0:03:01.7]} 9. Bxf6 {[%clk 0:03:04.5]} 9... Nxf6
{[%clk 0:03:01.7]} 10. O-O-O {[%clk 0:03:04.7]} 10... Bg4 {[%clk 0:03:01.8]} 11.
Nd5 {[%clk 0:03:04.8]} 11... Nxd5 {[%clk 0:02:58.9]} 12. Qxg4 {[%clk 0:03:05.1]}
12... Ne3 {[%clk 0:02:59.3]} 13. Qh5 {[%clk 0:02:33.7]} 13... g6 {[%clk
0:02:49.2]} 14. Qh3 {[%clk 0:02:14]} 14... Nxd1 {[%clk 0:02:48]} 15. Kxd1 {[%clk
0:02:14.9]} 15... Bg7 {[%clk 0:02:47.2]} 16. Qe3 {[%clk 0:01:53.3]} 16... Qb6
{[%clk 0:02:41.1]} 17. c3 {[%clk 0:01:47.1]} 17... Qxb2 {[%clk 0:02:38.5]} 18.
f5 {[%clk 0:01:37.4]} 18... Rc8 {[%clk 0:02:30.2]} 19. fxg6 {[%clk 0:01:33.9]}
19... Rxc3 {[%clk 0:02:04.7]} 20. gxf7+ {[%clk 0:01:33.6]} 20... Kd7 {[%clk
0:02:05.3]} 0-1